bitfinex/quotes_ETHUSD_20260213
["timestamp","ask_amount","ask_price","bid_price","bid_amount"]
[1770997935641,1.94413006,2034.3,2033.7,0.001]
[1770997935844,1.94413006,2034.3,2032.7,1.95506648]
[1770997935845,1.60120611,2034.2,2032.7,1.95506648]
[1770997936034,1.60120611,2034.2,2032.7,1.22987847]
[1770997936436,0.886,2034.2,2032.7,1.95506648]
[1770997936634,1.60120611,2034.2,2032.7,1.95506648]
[1770997936956,1.60120611,2034.2,2032.7,1.22987847]
[1770997936957,0.71520611,2034.1,2032.7,1.22987847]
[1770997937142,10.28781159,2034.2,2032.7,1.22987847]
[1770997937143,1.081,2034.0,2032.8,0.72518801]
[1770997937530,1.22916564,2033.9,2032.9,1.22977027]
[1770997937745,1.22916564,2033.9,2032.9,1.95495828]
[1770997937952,1.22916564,2033.9,2032.9,1.22977027]
[1770997938147,1.22916564,2033.9,2032.6,4.91971816]
[1770997938354,1.22916564,2033.9,2032.5,1.95515557]
[1770997938938,1.081,2033.8,2032.7,0.72518801]
[1770997939751,1.22928652,2033.7,2032.7,1.95504104]
[1770997939950,1.22928652,2033.7,2032.5,4.91991198]
[1770997940450,2.31026863,2033.8,2032.7,0.72518801]
[1770997940830,4.91521988,2034.5,2032.7,0.72518801]
[1770997940831,1.22898436,2034.2,2032.7,0.72518801]
[1770997941062,1.082,2034.1,2032.9,0.72518801]
[1770997941362,1.082,2034.1,2033.0,1.72218801]
[1770997941559,1.082,2034.1,2033.1,0.72518801]
[1770997942064,2.31110493,2034.1,2033.2,1.22958882]
[1770997942367,0.71520611,2033.9,2032.4,0.001]
[1770997942659,1.05477447,2033.8,2032.4,1.23103877]
[1770997942862,1.967,2033.7,2032.4,1.23103877]
[1770997943238,0.71520611,2033.6,2032.4,0.001]
[1770997943885,1.76935611,2033.5,2032.4,0.001]
[1770997944164,1.22946788,2033.4,2032.4,0.001]
[1770997944372,6.28842611,2033.3,2032.4,0.001]
[1770997944537,1.082,2033.2,2032.4,0.001]
[1770997944738,1.79720611,2033.2,2032.4,0.001]
[1770997944949,1.79720611,2033.2,2032.9,0.001]
[1770997945264,1.79720611,2033.2,2032.2,0.001]
[1770997945265,0.71520611,2033.1,2032.2,0.001]
[1770997945563,0.886,2033.0,2032.2,0.001]
[1770997945741,1.60120611,2033.0,2032.2,0.001]
[1770997945943,0.71520611,2032.9,2032.0,0.001]
[1770997946153,1.22983077,2032.8,2032.0,0.001]
[1770997946455,1.082,2032.7,2032.0,0.001]
[1770997947552,2.31183077,2032.8,2032.0,0.001]
[1770997950170,1.22983077,2032.8,2032.0,0.001]
[1770997950339,4.9193231,2032.9,2032.0,0.001]
[1770997950340,1.083,2032.7,2032.0,0.001]
[1770997950541,2.11582839,2032.9,2032.0,0.72618801]
[1770997950542,2.31282839,2032.9,2032.0,0.72618801]
[1770997950871,1.22974103,2033.0,2032.0,0.72618801]
[1770997951072,2.31268695,2033.1,2032.0,0.72618801]
[1770997951261,0.886,2033.3,2032.2,0.69843775]
[1770997951459,1.23137214,2033.6,2032.4,0.69843775]
[1770997951661,2.31437214,2033.6,2032.5,13.21076]
[1770997951861,2.31437214,2033.6,2032.5,7.34795]
[1770997952064,2.31437214,2033.6,2032.2,0.1024]
[1770997952263,2.31437214,2033.6,2032.3,0.69843775]
[1770997954655,0.6814784,2033.5,2032.1,1.23025441]
[1770997955082,0.6814784,2033.5,2032.1,1.92869216]
[1770997955285,19.240736,2033.4,2032.0,0.001]
[1770997955452,0.6814784,2033.3,2032.0,0.001]
[1770997955783,1.969,2033.2,2032.0,1.231307]
[1770997956172,1.969,2033.2,2032.1,0.69843775]
[1770997956383,1.083,2033.1,2032.2,1.23019387]
[1770997956584,1.083,2033.1,2032.3,0.69843775]
[1770997957789,0.002,2033.6,2032.3,0.69843775]
[1770997957961,1.084,2033.6,2032.5,0.70185429]
[1770997958156,1.084,2033.6,2032.7,0.70185429]
[1770997958157,0.002,2033.6,2032.7,0.70185429]
[1770997958359,1.23134697,2033.6,2032.8,1.22983077]
[1770997959291,0.002,2033.6,2032.9,0.70185429]
[1770997960188,1.081,2034.3,2032.9,0.70185429]
[1770997960559,1.22898436,2034.2,2033.1,0.70185429]
[1770997960960,2.3099319,2034.3,2033.1,0.70185429]
[1770997961388,1.22874275,2034.6,2033.3,0.70185429]
[1770997961590,0.002,2034.7,2033.7,3.947344]
[1770997961591,1.23068732,2034.7,2033.7,3.947344]
[1770997961770,1.23068732,2034.7,2033.7,2.79413]
[1770997961967,1.23068732,2034.7,2033.6,0.70185429]
[1770997962168,1.23068732,2034.7,2033.3,3.658744]
[1770997962364,1.23068732,2034.7,2033.6,0.70185429]
[1770997962571,2.31168732,2034.7,2033.7,1.22928652]
[1770997963892,2.31168732,2034.7,2033.6,1.93115757]
[1770997964082,2.31168732,2034.7,2033.2,1.22958882]
[1770997964274,2.31168732,2034.7,2033.2,1.93144311]
[1770997965500,0.70107187,2034.5,2033.1,0.992]
[1770997965707,0.70107187,2034.2,2032.4,10.10366588]
[1770997965865,10.15940087,2034.0,2032.5,1.93186659]
[1770997966065,1.966,2034.1,2032.4,1.2300285]
[1770997966066,10.45550648,2033.9,2032.4,1.2300285]
[1770997966289,1.05369489,2033.8,2032.4,1.2300285]
[1770997966491,1.05369489,2033.8,2032.4,1.93188279]
[1770997966684,1.32121336,2034.0,2032.4,1.93188279]
[1770997966881,2.28331764,2033.9,2032.4,1.93188279]
[1770997967089,1.32121336,2034.5,2032.8,0.70185429]
[1770997967400,5.99545418,2034.5,2033.2,0.70185429]
[1770997969109,5.99545418,2034.5,2033.3,1.22952835]
[1770997970267,0.002,2033.8,2033.3,1.22952835]
[1770997970577,0.002,2033.8,2033.2,1.2295457]
[1770997970972,0.002,2033.8,2033.1,1.22960985]
[1770997971174,0.002,2033.8,2033.0,0.886]
[1770997971374,0.002,2033.8,2032.5,2.92186659]
[1770997971586,0.002,2033.8,2032.5,0.70185429]
[1770997971983,1.966,2033.7,2032.5,0.70185429]
[1770997972786,1.966,2033.7,2032.5,1.69185429]
[1770997972985,1.966,2033.7,2032.7,13.279873]
[1770997973190,1.966,2033.7,2032.9,1.93162456]
[1770997973877,3.19528998,2033.7,2032.6,1.22995178]
[1770997974103,3.19528998,2033.7,2032.5,2.92182063]
[1770997975198,1.05444929,2033.6,2032.3,0.886]
[1770997975509,1.05444929,2033.5,2032.3,2.11613183]
[1770997976205,1.05444929,2033.4,2032.3,0.886]
[1770997976427,1.05444929,2033.4,2032.3,2.11613186]
[1770997976699,0.70107187,2033.6,2032.3,0.886]
[1770997976904,1.05475788,2033.5,2032.3,0.886]
[1770997977200,2.11528998,2033.7,2032.4,8.87397429]
[1770997977401,1.08,2033.4,2032.4,0.70185429]
[1770997978404,1.08,2033.4,2032.3,0.886]
[1770997978599,1.08,2033.4,2032.3,2.11613208]
[1770997979024,1.08,2033.4,2032.3,2.11612886]
[1770997979225,1.22952835,2033.3,2032.3,2.11612886]
[1770997979708,2.30852835,2033.3,2032.3,2.11612886]
[1770997980278,2.30852835,2033.3,2032.2,0.001]
[1770997980607,1.05684217,2033.2,2032.2,0.001]
[1770997980921,1.7603394,2033.1,2032.2,0.001]
[1770997981123,1.05685032,2033.0,2032.2,0.001]
[1770997981325,1.22977027,2032.9,2032.2,0.001]
[1770997981620,1.079,2032.8,2032.2,0.001]
[1770997981922,1.05670763,2032.7,2032.2,0.001]
[1770997982080,1.05672452,2032.6,2032.0,0.001]
[1770997982280,3.98970244,2032.8,2031.8,0.001]
[1770997982481,9.40181159,2032.2,2031.5,0.001]
[1770997982677,1.966,2032.1,2031.5,0.001]
[1770997982982,1.08,2032.1,2031.5,0.001]
[1770997983199,1.32121336,2032.5,2031.5,0.001]
[1770997983399,1.08,2032.4,2031.5,0.001]
[1770997983600,1.05481916,2032.3,2031.5,0.001]
[1770997983907,1.08,2032.4,2031.5,0.001]
[1770997984412,1.079,2032.3,2032.2,0.001]
[1770997984610,1.079,2032.3,2031.5,0.001]
[1770997984813,1.32121336,2032.9,2031.7,0.65984539]
[1770997984988,4.91779452,2033.5,2032.1,0.65984539]
[1770997985301,4.91779452,2033.5,2032.2,1.89003926]
[1770997985888,4.91779452,2033.5,2032.1,1.2302087]
[1770997986088,0.70348908,2033.4,2032.0,0.001]
[1770997986293,0.70348908,2033.2,2032.0,0.001]
[1770997986521,3.01930234,2033.1,2032.0,0.001]
[1770997986684,1.966,2033.1,2032.0,1.2312893]
[1770997987319,4.91779452,2033.5,2032.2,0.65984539]
[1770997987529,1.22940742,2033.5,2032.5,5.00556539]
[1770997987820,1.22940742,2033.5,2032.5,0.65984539]
[1770997988435,0.002,2033.6,2032.5,0.65984539]
[1770997988603,1.23134905,2033.6,2032.7,0.65984539]
[1770997988801,1.23135157,2033.6,2032.7,0.65984539]
[1770997989018,1.23136132,2033.6,2032.7,0.65984539]
[1770997989324,0.002,2033.6,2032.8,1.22983077]
[1770997989547,0.002,2033.6,2032.8,1.88967616]
[1770997989888,0.002,2033.6,2032.5,1.2300123]
[1770997990088,0.002,2033.6,2032.6,0.65984539]
[1770997991104,0.002,2033.6,2032.5,1.2300123]
[1770997991534,2.3066262,2033.7,2032.6,0.65984539]
[1770997992537,2.3066262,2033.7,2032.4,2.2180587]
[1770997992837,2.3066262,2033.7,2032.3,1.23008209]
[1770997992838,1.05401084,2033.6,2032.3,1.23008209]
[1770997993138,1.75753059,2033.5,2032.0,1.23127013]
[1770997993327,1.75753059,2033.5,2032.0,0.001]
[1770997993328,1.22952835,2033.3,2032.0,0.001]
[1770997993640,1.08,2033.2,2032.0,0.66084539]
[1770997994325,2.30952835,2033.3,2032.2,0.65984539]
[1770997995309,2.30952835,2033.3,2032.3,1.88997873]
[1770997995940,2.30952835,2033.3,2032.0,0.001]
[1770997996139,2.30952835,2033.3,2032.0,2.21928448]
[1770997996511,2.30952835,2033.3,2032.1,0.65984539]
[1770997997230,1.081,2033.2,2032.2,0.66084539]
[1770997997434,1.081,2033.2,2032.3,1.88997873]
[1770997997435,2.31064354,2033.2,2032.3,1.88997873]
[1770997997645,2.31064354,2033.2,2032.3,1.23013334]
[1770997997845,2.31064354,2033.2,2032.2,1.23114703]
[1770997998212,2.31064354,2033.2,2032.2,0.001]
[1770997998419,1.05632756,2033.1,2032.2,0.001]
[1770997998621,1.05647217,2033.0,2032.2,0.001]
[1770997998849,4.33534598,2033.2,2032.2,0.001]
[1770997999058,1.05649218,2033.1,2032.2,0.001]
[1770997999547,1.22970978,2033.0,2032.2,0.001]
[1770997999849,1.081,2032.9,2032.2,0.001]
[1770998000031,1.081,2032.9,2032.2,0.66084539]
[1770998000456,1.23157191,2033.3,2032.2,0.66084539]
[1770998000623,2.31157191,2033.3,2032.2,0.66084539]
[1770998001040,8.309771,2033.1,2032.2,0.001]
[1770998001270,0.70348908,2032.9,2032.0,0.001]
[1770998001465,1.22989127,2032.7,2032.0,0.001]
[1770998001771,2.13880992,2032.6,2032.0,0.001]
[1770998002070,1.22981775,2032.9,2032.0,0.001]
[1770998002275,2.31067263,2033.1,2032.0,0.66084539]
[1770998003457,2.31067263,2033.1,2032.1,1.23025441]
[1770998003654,2.31067263,2033.1,2032.0,1.2312801]
[1770998003856,1.05796773,2033.0,2032.0,0.001]
[1770998004060,3.08267017,2033.0,2032.0,0.001]
[1770998004376,1.05796773,2032.9,2032.0,0.001]
[1770998004870,1.05796773,2032.9,2032.0,1.23129403]
[1770998005036,3.63188599,2033.1,2032.0,1.23129403]
[1770998005238,1.05806848,2033.0,2032.0,1.23129403]
[1770998005438,1.22983077,2032.8,2032.0,0.001]
[1770998005671,1.082,2032.7,2032.0,0.001]
[1770998007376,1.22983077,2032.8,2032.0,0.66084539]
[1770998007582,1.082,2032.8,2032.0,0.66084539]
[1770998007754,1.082,2032.8,2032.0,0.001]
[1770998008104,1.082,2032.8,2032.0,1.2313148]
[1770998008396,1.082,2033.1,2032.1,0.65984539]
[1770998008954,0.002,2033.3,2032.1,0.65984539]
[1770998009161,1.231537,2033.3,2032.3,0.65984539]
[1770998009591,1.231537,2033.3,2032.4,1.23007282]
[1770998009892,1.231537,2033.3,2032.4,1.88991821]
[1770998010586,1.05796922,2033.2,2032.0,1.89114359]
[1770998010898,1.05796922,2033.1,2032.0,1.89114359]
[1770998011056,1.081,2033.0,2032.0,1.89114359]
[1770998011390,2.40221336,2033.0,2032.3,0.001]
[1770998011594,1.22983077,2032.8,2032.0,0.001]
[1770998012090,1.05826304,2032.7,2032.0,0.001]
[1770998012292,1.22983077,2032.8,2032.0,0.001]
[1770998012988,1.05844771,2032.7,2032.0,0.001]
[1770998013305,1.22983077,2032.8,2032.0,0.001]
[1770998013494,3.61010236,2032.8,2032.0,0.001]
[1770998013797,1.05905823,2032.7,2032.0,0.001]
[1770998014422,12.62191652,2032.6,2031.5,0.001]
[1770998014720,12.62191652,2032.6,2031.5,1.23161155]
[1770998014721,1.05905823,2032.5,2031.5,1.23161155]
[1770998015381,1.05905823,2032.5,2031.5,0.001]
[1770998015586,1.23007282,2032.4,2031.5,0.001]
[1770998015770,1.05905823,2032.3,2031.5,0.001]
[1770998015978,4.49634441,2032.4,2031.5,0.001]
[1770998016173,4.49634441,2032.4,2031.3,0.001]
[1770998016174,2.38027159,2032.3,2031.3,0.001]
[1770998016521,12.59897475,2032.2,2031.3,0.001]
[1770998016681,1.05905823,2032.1,2031.3,0.001]
[1770998016884,2.14105823,2032.0,2031.3,0.001]
[1770998017077,1.05875489,2031.9,2031.3,0.001]
[1770998017387,1.082,2032.0,2031.3,0.001]
[1770998017773,2.28837035,2031.9,2031.3,0.001]
[1770998018003,1.23037551,2031.9,2031.3,0.001]
[1770998018376,1.23037551,2031.9,2031.1,0.001]
[1770998018580,1.23037551,2031.9,2030.5,0.001]
[1770998018581,10.21870316,2031.6,2030.9,0.001]
[1770998018807,3.02645532,2031.5,2030.5,0.001]
[1770998018983,1.969,2031.5,2030.5,0.001]
[1770998019888,1.23067834,2031.4,2030.5,0.001]
[1770998023114,1.91126538,2031.4,2029.9,1.6051034]
[1770998023313,10.21870316,2031.3,2029.9,2.83665065]
[1770998023515,10.21870316,2031.3,2030.7,0.001]
[1770998023817,1.23067834,2031.4,2030.7,0.001]
[1770998025715,1.23067834,2031.4,2030.5,0.001]
[1770998026505,0.1024,2031.3,2030.5,0.001]
[1770998026796,10.32110316,2031.3,2030.5,0.001]
[1770998027024,11.0016902,2031.3,2030.5,0.001]
[1770998027192,11.0016902,2031.3,2029.9,1.23158525]
[1770998027390,0.78298704,2031.3,2029.9,1.23158525]
[1770998027819,1.23079952,2031.2,2029.8,5.5546782]
[1770998028012,1.973,2031.1,2029.9,0.6271034]
[1770998028922,1.086,2031.4,2030.3,0.6271034]
[1770998030021,5.80878272,2031.8,2030.5,0.6271034]
[1770998030022,1.23064584,2031.5,2030.5,0.6271034]
[1770998030220,1.23043606,2031.8,2030.5,0.6271034]
[1770998030391,1.085,2031.7,2030.5,0.6271034]
[1770998030887,1.085,2031.7,2030.7,0.6271034]
[1770998031522,1.085,2031.7,2030.8,0.6271034]
[1770998032016,1.23055719,2031.6,2030.9,1.23098133]
[1770998032409,0.002,2032.1,2031.0,0.6271034]
[1770998032723,0.002,2032.3,2031.6,0.6271034]
[1770998032930,0.002,2033.1,2031.9,30.0]
[1770998033225,0.002,2033.1,2032.3,6.1965544]
[1770998033401,1.23165354,2033.1,2032.3,1.6011034]
[1770998033604,0.002,2033.1,2032.4,0.6271034]
[1770998034019,0.002,2033.1,2032.5,1.2300123]
[1770998034896,0.002,2033.1,2032.4,1.85713637]
[1770998035203,1.086,2033.1,2032.0,1.85741481]
[1770998036115,1.086,2033.1,2032.1,0.6271034]
[1770998036417,1.23167697,2033.1,2032.0,1.23031141]
[1770998036819,1.23167697,2033.1,2032.0,1.85741481]
[1770998037022,1.23165863,2033.1,2032.1,0.6271034]
[1770998037426,0.002,2032.9,2032.1,0.6271034]
[1770998037794,0.002,2032.9,2032.2,0.975]
[1770998038196,0.002,2032.9,2032.2,1.85725354]
[1770998038515,0.002,2032.9,2032.1,0.975]
[1770998038817,0.002,2032.9,2031.9,0.975]
[1770998039527,1.084,2032.9,2031.7,1.23145161]
[1770998039697,1.084,2032.9,2031.7,2.20649484]
[1770998039899,1.971,2032.9,2031.7,1.23149488]
[1770998040344,1.22983077,2032.8,2031.7,0.001]
[1770998040865,0.002,2032.9,2031.7,0.64289867]
[1770998040996,0.002,2032.9,2032.0,17.670549]
[1770998041194,0.002,2032.9,2032.2,0.64189867]
[1770998041195,1.23177429,2032.9,2032.2,0.64189867]
[1770998041623,1.23177429,2032.9,2032.0,0.974]
[1770998042118,1.23177429,2032.9,2031.8,0.64189867]
[1770998042597,1.23177429,2032.9,2031.7,1.2314524]
[1770998042598,1.082,2032.8,2031.7,1.2314524]
[1770998042795,1.082,2032.8,2031.7,1.2314943]
[1770998043195,1.082,2032.8,2031.8,0.64189867]
[1770998044220,0.002,2032.9,2031.8,0.64189867]
[1770998044638,0.002,2032.9,2032.0,0.64189867]
[1770998044929,0.002,2032.9,2032.2,0.64189867]
[1770998045104,0.002,2033.1,2032.4,0.64189867]
[1770998045612,0.002,2033.1,2032.4,1.61589867]
[1770998045813,0.002,2033.1,2032.6,0.64189867]
[1770998046344,0.002,2033.3,2032.6,0.64189867]
[1770998046718,0.002,2033.3,2032.8,1.87172944]
[1770998047031,1.22907153,2034.1,2033.1,0.64189867]
[1770998047231,1.23122816,2033.8,2033.1,0.64189867]
[1770998047714,1.23122816,2033.8,2032.9,9.281216]
[1770998047919,1.23122816,2033.8,2032.8,1.87172944]
[1770998048116,1.23122816,2033.8,2032.8,2.20383077]
[1770998048344,1.23122816,2033.8,2032.5,1.2300123]
[1770998048542,2.31122816,2033.8,2032.5,2.84591097]
[1770998049045,2.31122816,2033.8,2032.6,0.64189867]
[1770998049346,2.31122816,2033.8,2032.8,0.64189867]
[1770998049520,0.002,2032.9,2032.8,0.64189867]
[1770998049721,2.31122816,2033.8,2032.5,1.2300123]
[1770998049928,2.31122816,2033.8,2032.4,1.87193318]
[1770998050130,0.002,2033.1,2032.4,1.87193318]
[1770998050844,0.002,2033.1,2032.3,0.974]
[1770998051254,0.002,2033.1,2031.9,1.23032343]
[1770998051556,0.002,2033.1,2031.9,2.20532343]
[1770998051969,9.43336762,2033.1,2031.9,0.975]
[1770998052268,9.43336762,2033.1,2031.9,2.20536962]
[1770998052585,0.002,2033.1,2031.9,2.20536962]
[1770998052738,0.002,2033.1,2032.1,1.23025441]
[1770998053264,0.002,2033.1,2032.2,0.64189867]
[1770998053426,0.002,2033.1,2032.1,1.23025441]
[1770998053427,0.002,2033.1,2032.3,0.64189867]
[1770998053627,0.002,2033.1,2032.4,0.975]
[1770998054241,0.002,2033.1,2032.5,0.64189867]
[1770998054836,0.002,2033.1,2032.6,1.22995178]
[1770998055878,1.23122661,2033.8,2032.8,0.64189867]
[1770998056166,1.23122661,2033.8,2032.6,1.22995178]
[1770998056364,1.23122661,2033.8,2032.7,0.976]
[1770998056864,1.23122661,2033.8,2032.8,1.22983077]
[1770998056865,0.002,2033.8,2032.8,1.22983077]
[1770998057053,0.002,2033.8,2032.8,1.87172944]
[1770998058977,0.002,2033.8,2032.9,0.64189867]
[1770998059176,0.002,2033.8,2033.1,0.64189867]
[1770998059336,0.002,2033.8,2032.8,1.22983077]
[1770998059337,0.002,2033.8,2033.3,0.64189867]
[1770998060743,0.00064809,2033.8,2033.3,0.64189867]
[1770998060964,0.00064809,2033.8,2033.4,1.22946788]
[1770998061283,0.00064809,2033.8,2033.3,1.87138224]
[1770998061577,0.00064809,2033.8,2033.2,5.89325638]
[1770998061578,0.00064809,2033.8,2033.2,0.70089005]
[1770998061744,0.00064809,2033.8,2032.1,1.23025441]
[1770998061745,0.002,2033.6,2032.1,1.23025441]
[1770998062065,1.078,2033.6,2032.5,0.64289867]
[1770998062244,0.002,2033.6,2032.7,0.64189867]
[1770998062652,0.002,2033.6,2032.9,10.76212]
[1770998062971,0.002,2033.6,2033.1,1.2296493]
[1770998063466,0.00064812,2033.6,2033.1,0.001]
[1770998063855,0.00064812,2033.6,2033.1,0.64289867]
[1770998064965,0.00064812,2033.6,2033.1,0.001]
[1770998065166,0.00064812,2033.6,2033.1,1.2306493]
[1770998065360,0.00064812,2033.6,2033.1,0.975]
[1770998065572,0.00064812,2033.6,2033.2,0.001]
[1770998066075,0.00064809,2033.8,2033.3,0.001]
[1770998066377,0.00064809,2033.8,2033.2,0.001]
[1770998066951,0.00064809,2033.8,2033.3,0.64189867]
[1770998067282,0.002,2034.0,2033.4,1.22946788]
[1770998067482,0.002,2034.0,2032.9,0.64189867]
[1770998067648,0.002,2034.0,2033.0,0.001]
[1770998069475,0.002,2034.0,2033.0,0.64289867]
[1770998069980,0.002,2034.0,2033.0,0.001]
[1770998071352,1.22916564,2033.9,2033.0,0.001]
[1770998072052,1.05571729,2033.8,2032.9,0.976]
[1770998072379,1.31952312,2033.5,2032.5,0.001]
[1770998072582,1.05579802,2033.5,2032.5,0.001]
[1770998072778,1.05579802,2033.4,2032.5,0.001]
[1770998073078,1.955,2033.5,2032.5,0.001]
[1770998073273,1.05623003,2033.4,2032.5,0.001]
[1770998073576,1.22946788,2033.4,2032.8,0.001]
[1770998073776,1.05690721,2033.3,2032.8,0.001]
[1770998073951,1.22946788,2033.4,2032.8,0.001]
[1770998074152,1.05691285,2033.3,2032.5,0.001]
[1770998074350,1.22946788,2033.4,2032.5,0.001]
[1770998074971,1.069,2033.3,2032.5,0.001]
[1770998075354,1.22958882,2033.2,2032.5,0.001]
[1770998075997,0.002,2033.6,2032.5,0.001]
[1770998076200,1.22940742,2033.5,2032.5,0.62691463]
[1770998076368,1.23139458,2033.6,2032.6,17.86675463]
[1770998076569,1.23139458,2033.6,2032.7,0.973]
[1770998076883,0.002,2033.6,2032.8,0.58891322]
[1770998077291,0.002,2033.6,2033.0,0.58891322]
[1770998077489,0.002,2033.6,2033.2,0.58891322]
[1770998078798,0.002,2033.6,2033.2,1.56291322]
[1770998079507,0.002,2033.6,2033.3,1.22952835]
[1770998079692,0.002,2033.6,2033.2,2.79245943]
[1770998079883,0.002,2033.6,2033.1,0.975]
[1770998080484,0.002,2033.6,2032.5,0.001]
[1770998080687,11.36938101,2033.5,2032.5,0.001]
[1770998081001,1.05629817,2033.4,2032.5,0.001]
[1770998081371,10.43208121,2033.3,2032.5,0.001]
[1770998081605,10.43208121,2033.3,2031.7,0.001]
[1770998081606,1.22970978,2033.0,2031.7,0.001]
[1770998081775,1.05629817,2032.9,2031.7,0.001]
[1770998081973,1.952,2032.8,2031.7,0.001]
[1770998083800,1.22989127,2032.7,2031.7,0.001]
[1770998084179,1.22989127,2032.7,2031.7,0.58991322]
[1770998085989,1.22989127,2032.7,2031.8,1.23043606]
[1770998086392,1.22952835,2033.3,2031.9,0.58891322]
[1770998086589,2.11552835,2033.3,2031.9,0.58891322]
[1770998086793,2.11552835,2033.3,2031.9,0.58991322]
[1770998086794,1.066,2033.2,2031.9,0.58991322]
[1770998087019,1.068,2033.2,2031.9,0.58991322]
[1770998087915,1.2296493,2033.1,2032.0,1.23031496]
[1770998088311,1.23163727,2033.2,2032.2,7.82489622]
[1770998088479,1.23163727,2033.2,2032.2,0.58891322]
[1770998090039,0.002,2033.2,2032.4,0.58891322]
[1770998091705,0.002,2033.2,2032.3,1.23013334]
[1770998092018,0.002,2033.2,2032.3,1.81904656]
[1770998092522,0.002,2033.2,2032.4,0.58891322]
[1770998092692,0.002,2033.2,2032.6,0.58891322]
[1770998092892,0.002,2033.2,2032.7,0.58891322]
[1770998093213,1.23134737,2033.6,2032.7,0.58891322]
[1770998093396,0.002,2033.6,2032.7,0.58891322]
[1770998093995,0.002,2033.6,2032.8,1.22983077]
[1770998094196,0.002,2033.6,2032.9,0.58891322]
[1770998095620,0.002,2033.6,2033.0,16.614475]
[1770998095831,0.002,2033.8,2033.0,0.971]
[1770998096121,0.002,2033.8,2032.9,0.972]
[1770998098520,0.002,2033.8,2032.9,2.20176509]
[1770998098698,0.002,2033.8,2032.9,2.79067831]
[1770998098894,0.002,2033.8,2033.0,0.58891322]
[1770998099213,0.002,2033.8,2032.9,1.22976509]
[1770998100228,0.002,2033.8,2033.0,0.58891322]
[1770998100529,0.002,2033.8,2033.2,0.58891322]
[1770998100730,0.002,2033.6,2032.9,1.22976509]
[1770998101629,0.002,2033.6,2032.8,0.971]
[1770998101803,0.002,2033.6,2032.8,2.2008181]
[1770998102329,0.002,2033.6,2033.0,1.86215348]
[1770998102727,0.002,2033.6,2032.9,1.22973891]
[1770998102916,0.002,2033.6,2032.8,0.971]
[1770998103123,0.002,2033.6,2032.8,2.20082609]
[1770998103702,0.002,2033.6,2032.8,2.83326979]
[1770998104416,0.002,2033.6,2033.1,0.6324437]
[1770998104737,0.002,2034.2,2033.0,23.999684]
[1770998104738,0.002,2034.2,2033.5,0.6324437]
[1770998104924,1.23099555,2034.2,2033.4,0.971]
[1770998105117,0.002,2034.2,2033.4,0.971]
[1770998105322,1.23100109,2034.2,2033.4,0.971]
[1770998105924,0.002,2034.2,2033.4,0.971]
[1770998106142,0.002,2034.2,2033.5,0.6324437]
[1770998106339,0.002,2034.2,2033.6,1.22934697]
[1770998106528,0.002,2034.2,2033.6,1.20306339]
[1770998106728,0.002,2034.2,2033.7,0.6324437]
[1770998107039,0.002,2034.4,2033.4,1.22946788]
[1770998107225,0.002,2034.4,2033.2,1.22955613]
[1770998107426,1.64787323,2034.4,2032.9,1.86216553]
[1770998107630,0.59087323,2034.3,2032.9,1.86216553]
[1770998108254,1.81985759,2034.2,2032.9,1.22972183]
[1770998108421,1.22898436,2034.2,2032.9,1.22972183]
[1770998108622,1.22898436,2034.2,2032.6,0.001]
[1770998108623,0.59087323,2033.9,2032.6,0.001]
[1770998108846,0.59087323,2033.7,2032.6,0.001]
[1770998109048,1.64487323,2033.7,2032.6,0.001]
[1770998109258,1.05514618,2033.6,2032.6,0.001]
[1770998109422,0.59087323,2033.6,2032.6,0.001]
[1770998110054,1.64620668,2033.5,2032.6,0.001]
[1770998110247,1.22946788,2033.4,2032.6,0.001]
[1770998110953,1.22946788,2033.4,2032.6,0.6334437]
[1770998111346,1.22946788,2033.4,2032.6,0.001]
[1770998112330,1.22945134,2033.5,2032.6,1.23095178]
[1770998112544,1.22945134,2033.5,2032.6,1.86339548]
[1770998113142,1.22945134,2033.5,2032.6,2.83339548]
[1770998113339,2.28322607,2033.9,2032.7,0.6324437]
[1770998113556,2.28322607,2033.9,2032.8,0.6334437]
[1770998113557,2.28320839,2033.9,2032.8,0.6334437]
[1770998113757,1.22916843,2033.9,2032.8,0.6334437]
[1770998114036,2.11715401,2034.0,2032.8,0.6334437]
[1770998114235,1.23115401,2034.0,2033.0,0.6324437]
[1770998114455,0.002,2034.0,2032.9,1.22973907]
[1770998115575,0.002,2034.0,2032.8,0.001]
[1770998115864,0.002,2034.0,2032.8,1.23081517]
[1770998116068,1.055,2034.0,2032.8,1.23081517]
[1770998116762,1.22916564,2033.9,2032.8,0.6334437]
[1770998116965,1.23115135,2034.0,2032.8,0.6334437]
[1770998117275,1.23115135,2034.0,2033.0,0.6324437]
[1770998118065,1.82202458,2034.0,2032.9,0.020022]
[1770998118268,1.64916766,2033.9,2032.9,0.020022]
[1770998118466,1.23115135,2034.0,2032.9,0.020022]
[1770998118679,1.05862619,2033.9,2032.9,0.020022]
[1770998118976,1.053,2033.8,2032.9,1.24977416]
[1770998119142,1.053,2033.8,2032.9,0.020022]
[1770998119854,1.23115135,2034.0,2032.9,1.24979091]
[1770998120061,2.28415135,2034.0,2032.9,1.88223461]
[1770998120365,1.05917358,2033.9,2032.9,1.24979201]
[1770998120566,2.28415135,2034.0,2032.9,1.24979201]
[1770998120734,0.002,2034.0,2033.0,0.6324437]
[1770998120940,0.002,2034.0,2033.2,0.6324437]
[1770998121372,0.002,2034.0,2033.4,0.6324437]
[1770998121669,0.002,2034.0,2033.2,0.886]
[1770998122450,0.002,2034.0,2033.2,1.5184437]
[1770998122642,0.002,2034.0,2033.3,0.6324437]
[1770998122871,0.002,2034.0,2033.4,1.22946788]
[1770998124975,0.002,2034.0,2033.3,4.91787154]
[1770998125957,0.002,2034.0,2033.3,1.22952835]
[1770998126177,0.002,2034.0,2033.4,0.001]